[Event "FIDE WCCC G10 2018"]
[Site "Santiago de Compostela"]
[Date "2018.11.15"]
[Round "11"]
[White "Szczotka, Klara"]
[Black "Petrosyan, Ani"]
[Result "1-0"]
[ECO "B29"]
[WhiteElo "1581"]
[BlackElo "1442"]
[Annotator "NA"]
[PlyCount "127"]
[EventDate "2018.11.04"]
[EventType "swiss"]
[EventCountry "ESP"]
[SourceTitle "playchess.com"]
[Source "ChessBase"]
[SourceQuality "1"]
[TimeControl "40/5400+30:1800+30"]

1. e4 {[%emt 0:00:00]} c5 {[%emt 0:00:00]} 2. Nf3 {[%emt 0:00:00]} Nf6 {[%emt 0:01:36]} 3. e5 {[%emt 0:01:34]} Nd5 {[%emt 0:01:00]} 4. d4 {[%emt 0:02:51]} cxd4 {[%emt 0:03:38]} 5. Qxd4 e6 {[%emt 0:00:38]} 6. c4 {[%emt 0:17:08]} Nc6 {[%emt 0:09:40]} 7. Qd1 {[%emt 0:01:31]} Nc7 {[%emt 0:00:40]} 8. Nc3 {[%emt 0:01:14]} Be7 {[%emt 0:15:56]} 9. Be2 {[%emt 0:03:06]} O-O {[%emt 0:02:00]} 10. O-O {[%emt 0:00:12]} d6 {[%emt 0:02:55]} 11. exd6 {[%emt 0:04:57]} Bxd6 {[%emt 0:06:43]} 12. Be3 {[%emt 0:00:52]} b6 {[%emt 0:09:19]} 13. a3 {[%emt 0:02:07]} Bb7 {[%emt 0:05:32]} 14. Qc2 {[%emt 0:03:50]} Ne5 {[%emt 0:06:44]} 15. Ng5 {[%emt 0:12:30]} Ng6 {[%emt 0:13:42]} 16. Rad1 {[%emt 0:03:19]} Qe7 {[%emt 0:01:42]} 17. Nce4 {[%emt 0:09:15]} Rad8 {[%emt 0:07:15]} 18. Nxd6 {[%emt 0:02:09]} Rxd6 {[%emt 0:00:16]} 19. Rxd6 {[%emt 0:00:15]} Qxd6 {[%emt 0:00:10]} 20. Rd1 {[%emt 0:02:05]} Qe7 {[%emt 0:00:38]} 21. f4 {[%emt 0:10:46]} h6 {[%emt 0:03:57]} 22. Nf3 {[%emt 0:02:01]} Rd8 {[%emt 0:00:44]} 23. Rxd8+ {[%emt 0:05:25]} Qxd8 {[%emt 0:00:07]} 24. Qd2 {[%emt 0:02:05]} Qxd2 {[%emt 0:00:40]} 25. Nxd2 {[%emt 0:00:24]} Ne8 {[%emt 0:00:55]} 26. g3 {[%emt 0:00:38]} Nf6 {[%emt 0:00:11]} 27. c5 {[%emt 0:01:37]} bxc5 {[%emt 0:00:12]} 28. Bxc5 {[%emt 0:00:17]} a6 {[%emt 0:01:30]} 29. Bd3 {[%emt 0:00:47]} Nf8 {[%emt 0:00:26]} 30. Bd4 {[%emt 0:01:03]} N8d7 {[%emt 0:00:13]} 31. b4 {[%emt 0:01:02]} Nd5 {[%emt 0:01:51]} 32. Nc4 {[%emt 0:01:02]} Bc6 {[%emt 0:01:23]} 33. Nd6 {[%emt 0:00:47]} Nb8 {[%emt 0:00:35]} 34. Ba7 {[%emt 0:00:57]} Nd7 {[%emt 0:01:14]} 35. Bxa6 {[%emt 0:00:36]} Ba4 {[%emt 0:00:26]} 36. Bb5 {[%emt 0:01:11]} Bxb5 {[%emt 0:00:48]} 37. Nxb5 Kf8 {[%emt 0:00:14]} 38. Kf2 {[%emt 0:00:26]} Ke7 {[%emt 0:00:16]} 39. Ke2 {[%emt 0:00:30]} f6 {[%emt 0:00:17]} 40. Kd3 {[%emt 0:00:00]} e5 {[%emt 0:00:00]} 41. f5 {[%emt 0:02:04]} N7b6 {[%emt 0:02:03]} 42. Bxb6 {[%emt 0:00:20]} Nxb6 {[%emt 0:00:09]} 43. Nc3 {[%emt 0:00:07]} Kd6 {[%emt 0:00:29]} 44. Ne4+ {[%emt 0:02:17]} Kc6 {[%emt 0:00:42]} 45. Kc3 {[%emt 0:01:57]} Kd5 {[%emt 0:02:52]} 46. Nc5 {[%emt 0:01:36]} Kc6 {[%emt 0:02:48]} 47. Ne6 {[%emt 0:01:45]} Nd5+ {[%emt 0:01:29]} 48. Kb3 {[%emt 0:02:04]} e4 {[%emt 0:00:46]} 49. Nxg7 {[%emt 0:02:55]} e3 {[%emt 0:00:25]} 50. Ne6 {[%emt 0:00:55]} Kb6 {[%emt 0:02:50]} 51. Nd4 {[%emt 0:00:52]} Kc7 {[%emt 0:00:58]} 52. Kc4 {[%emt 0:01:29]} Kd6 {[%emt 0:00:20]} 53. Kd3 {[%emt 0:00:10]} Ke5 {[%emt 0:00:19]} 54. Nc2 {[%emt 0:00:21]} e2 {[%emt 0:00:55]} 55. Kxe2 {[%emt 0:00:12]} Kxf5 {[%emt 0:00:05]} 56. Kd3 {[%emt 0:00:12]} Ke5 {[%emt 0:00:29]} 57. Ne3 {[%emt 0:00:30]} Nxe3 {[%emt 0:00:51]} 58. Kxe3 {[%emt 0:00:06]} Kd5 {[%emt 0:00:09]} 59. Kf4 {[%emt 0:00:09]} Kc4 {[%emt 0:00:08]} 60. Kf5 {[%emt 0:00:09]} Kb3 {[%emt 0:00:05]} 61. b5 {[%emt 0:00:07]} Kxa3 {[%emt 0:00:12]} 62. b6 {[%emt 0:00:05]} Ka4 {[%emt 0:00:10]} 63. b7 {[%emt 0:00:04]} Ka5 {[%emt 0:00:03]} 64. b8=Q {[%emt 0:00:09]} 1-0

[Event "FIDE WCCC G10 2018"]
[Site "Santiago de Compostela"]
[Date "2018.11.15"]
[Round "11"]
[White "Rasheva, Nora"]
[Black "Kulish, Glafira"]
[Result "0-1"]
[ECO "A01"]
[WhiteElo "1495"]
[BlackElo "1153"]
[Annotator "NA"]
[PlyCount "112"]
[EventDate "2018.11.04"]
[EventType "swiss"]
[EventCountry "ESP"]
[SourceTitle "playchess.com"]
[Source "ChessBase"]
[SourceQuality "1"]
[TimeControl "40/5400+30:1800+30"]

1. b3 {[%emt 0:00:00]} e5 {[%emt 0:00:00]} 2. Bb2 {[%emt 0:00:00]} Nc6 {[%emt 0:00:00]} 3. e3 {[%emt 0:00:00]} d5 {[%emt 0:00:00]} 4. Bb5 {[%emt 0:00:00]} Bd6 {[%emt 0:00:03]} 5. f4 {[%emt 0:01:46]} f6 {[%emt 0:00:24]} 6. fxe5 {[%emt 0:00:41]} fxe5 {[%emt 0:00:18]} 7. Bxc6+ {[%emt 0:01:50]} bxc6 {[%emt 0:00:14]} 8. Bxe5 {[%emt 0:00:32]} Qh4+ {[%emt 0:01:13]} 9. g3 {[%emt 0:00:07]} Qe4 {[%emt 0:01:25]} 10. Qf3 {[%emt 0:19:52]} Bxe5 {[%emt 0:01:57]} 11. d4 {[%emt 0:00:59]} Qxf3 {[%emt 0:05:11]} 12. Nxf3 {[%emt 0:00:06]} Bd6 {[%emt 0:00:13]} 13. Nbd2 {[%emt 0:03:07]} Nf6 {[%emt 0:02:20]} 14. c4 {[%emt 0:09:03]} Bb4 {[%emt 0:05:22]} 15. a3 {[%emt 0:03:33]} Bxd2+ {[%emt 0:01:00]} 16. Nxd2 {[%emt 0:07:45]} O-O {[%emt 0:02:32]} 17. O-O {[%emt 0:08:27]} Bh3 {[%emt 0:07:38]} 18. Rf4 {[%emt 0:04:19]} Rae8 {[%emt 0:02:02]} 19. Re1 {[%emt 0:01:29]} Ng4 {[%emt 0:04:21]} 20. Rxf8+ {[%emt 0:02:19]} Kxf8 {[%emt 0:00:43]} 21. e4 {[%emt 0:00:36]} dxe4 {[%emt 0:00:50]} 22. Rxe4 {[%emt 0:00:37]} Rxe4 {[%emt 0:00:39]} 23. Nxe4 {[%emt 0:00:05]} Nf6 {[%emt 0:00:17]} 24. Nc5 {[%emt 0:00:42]} Ke7 {[%emt 0:00:33]} 25. Nd3 {[%emt 0:07:34]} Ne4 {[%emt 0:05:40]} 26. Ne5 {[%emt 0:01:49]} Bd7 {[%emt 0:00:34]} 27. b4 {[%emt 0:03:42]} Ng5 {[%emt 0:06:03]} 28. Kf2 {[%emt 0:00:58]} Nf7 {[%emt 0:00:22]} 29. Nxf7 {[%emt 0:05:07]} Kxf7 {[%emt 0:00:08]} 30. Ke3 {[%emt 0:00:03]} Be6 {[%emt 0:00:43]} 31. Kd3 {[%emt 0:00:16]} Kf6 {[%emt 0:00:18]} 32. a4 {[%emt 0:00:30]} a6 {[%emt 0:00:28]} 33. a5 {[%emt 0:01:21]} Kf5 {[%emt 0:00:23]} 34. d5 {[%emt 0:02:22]} cxd5 {[%emt 0:00:30]} 35. cxd5 {[%emt 0:00:04]} Bxd5 {[%emt 0:00:11]} 36. Kd4 {[%emt 0:00:50]} Bc6 {[%emt 0:00:13]} 37. h3 {[%emt 0:00:09]} h5 {[%emt 0:00:37]} 38. Ke3 {[%emt 0:00:24]} Ke5 {[%emt 0:00:13]} 39. Kd3 {[%emt 0:02:57]} Bd7 {[%emt 0:00:22]} 40. h4 {[%emt 0:00:00]} Kf5 {[%emt 0:00:00]} 41. Ke3 {[%emt 0:00:32]} Kg4 {[%emt 0:00:19]} 42. Kf2 {[%emt 0:00:04]} Bc6 {[%emt 0:00:12]} 43. Kf1 {[%emt 0:00:21]} Kxg3 {[%emt 0:00:07]} 44. Kg1 {[%emt 0:00:04]} Bg2 {[%emt 0:00:31]} 45. b5 {[%emt 0:00:11]} axb5 {[%emt 0:00:10]} 46. a6 {[%emt 0:00:03]} b4 {[%emt 0:00:15]} 47. a7 {[%emt 0:00:03]} b3 {[%emt 0:00:10]} 48. a8=Q {[%emt 0:00:07]} Bxa8 {[%emt 0:00:06]} 49. Kf1 {[%emt 0:00:03]} b2 {[%emt 0:00:22]} 50. Ke2 {[%emt 0:00:04]} b1=Q {[%emt 0:00:08]} 51. Kd2 {[%emt 0:00:04]} Qb3 {[%emt 0:00:11]} 52. Ke2 {[%emt 0:00:05]} Be4 {[%emt 0:00:19]} 53. Kd2 {[%emt 0:00:07]} Qd3+ {[%emt 0:00:05]} 54. Ke1 {[%emt 0:00:08]} Kh2 {[%emt 0:00:23]} 55. Kf2 {[%emt 0:00:07]} Bf3 {[%emt 0:00:07]} 56. Ke1 {[%emt 0:00:04]} Qe2# {[%emt 0:00:04]} 0-1

[Event "FIDE WCCC G10 2018"]
[Site "Santiago de Compostela"]
[Date "2018.11.15"]
[Round "11"]
[White "Yildiz, Elif Zeren"]
[Black "Kirtadze, Anastasia"]
[Result "1-0"]
[ECO "A08"]
[WhiteElo "1448"]
[BlackElo "1373"]
[Annotator "NA RC"]
[PlyCount "143"]
[EventDate "2018.11.04"]
[EventType "swiss"]
[EventCountry "ESP"]
[SourceTitle "playchess.com"]
[Source "ChessBase"]
[SourceQuality "1"]
[TimeControl "40/5400+30:1800+30"]

1. e4 {[%emt 0:00:00]} e6 {[%emt 0:00:00]} 2. d3 {[%emt 0:00:00]} c5 {[%emt 0:00:41]} 3. Nd2 {[%emt 0:00:08]} Nc6 {[%emt 0:00:35]} 4. Ngf3 {[%emt 0:00:14]} Nf6 {[%emt 0:01:36]} 5. g3 {[%emt 0:00:28]} d5 {[%emt 0:01:49]} 6. Bg2 {[%emt 0:00:11]} Be7 {[%emt 0:01:34]} 7. O-O {[%emt 0:01:09]} O-O {[%emt 0:00:54]} 8. Re1 {[%emt 0:01:02]} Rb8 {[%emt 0:06:52]} 9. e5 {[%emt 0:02:49]} Nd7 {[%emt 0:00:22]} 10. Nf1 {[%emt 0:00:55]} f6 {[%emt 0:06:10]} 11. exf6 {[%emt 0:09:00]} Bxf6 {[%emt 0:00:41]} 12. h4 {[%emt 0:00:41]} h6 {[%emt 0:04:52]} 13. N1h2 {[%emt 0:03:13]} Qe7 {[%emt 0:14:58]} 14. Ng4 {[%emt 0:11:14]} Nb6 {[%emt 0:09:59]} 15. c3 {[%emt 0:07:56]} e5 {[%emt 0:07:34]} 16. Ngxe5 {[%emt 0:10:10]} Nxe5 {[%emt 0:03:54]} 17. Nxe5 {[%emt 0:00:18]} Bxe5 {[%emt 0:01:22]} 18. Bf4 {[%emt 0:01:09]} Be6 {[%emt 0:04:09]} 19. Rxe5 {[%emt 0:01:59]} Rbe8 {[%emt 0:03:25]} 20. Qe2 {[%emt 0:02:19]} Rf5 {[%emt 0:05:26]} 21. Re1 {[%emt 0:01:41]} Rxe5 {[%emt 0:00:27]} 22. Qxe5 {[%emt 0:00:37]} Qf7 {[%emt 0:00:54]} 23. Qc7 {[%emt 0:08:05]} Nd7 {[%emt 0:03:48]} 24. Qd6 {[%emt 0:02:19]} Nf6 {[%emt 0:03:05]} 25. Qxc5 {[%emt 0:03:28]} Rc8 {[%emt 0:01:36]} 26. Qd4 {[%emt 0:01:03]} Re8 {[%emt 0:02:27]} 27. Re5 {[%emt 0:02:57]} Kh7 {[%emt 0:01:00]} 28. Qa4 {[%emt 0:02:40]} Ng4 {[%emt 0:01:44]} 29. Re2 {[%emt 0:00:23]} Nf6 {[%emt 0:01:11]} 30. Qxa7 {[%emt 0:01:58]} Re7 {[%emt 0:02:50]} 31. Qc5 {[%emt 0:02:33]} Rd7 {[%emt 0:02:01]} 32. a4 {[%emt 0:02:08]} Re7 {[%emt 0:02:15]} 33. Qb4 {[%emt 0:01:30]} Re8 {[%emt 0:00:51]} 34. a5 {[%emt 0:00:30]} Qh5 {[%emt 0:01:01]} 35. Re1 {[%emt 0:02:37]} Qf7 {[%emt 0:01:23]} 36. Qd4 {[%emt 0:00:48]} Qd7 {[%emt 0:01:06]} 37. b4 {[%emt 0:00:58]} Ng4 {[%emt 0:02:10]} 38. c4 {[%emt 0:02:32]} Bf5 {[%emt 0:01:20]} 39. Rd1 {[%emt 0:03:12]} Qa4 {[%emt 0:00:50]} 40. Rf1 {[%emt 0:00:00]} Qxb4 {[%emt 0:00:00]} 41. Qxd5 {[%emt 0:03:36]} Bg6 {[%emt 0:01:02]} 42. Qxb7 {[%emt 0:01:13]} Qxa5 {[%emt 0:00:35]} 43. Qb5 {[%emt 0:02:00]} Qd8 {[%emt 0:04:10]} 44. Be4 {[%emt 0:00:42]} Bxe4 {[%emt 0:00:46]} 45. dxe4 {[%emt 0:02:55]} Rf8 {[%emt 0:00:51]} 46. Qd5 {[%emt 0:01:28]} Qe8 {[%emt 0:01:39]} 47. f3 {[%emt 0:01:37]} Nf6 {[%emt 0:00:31]} 48. Qe5 {[%emt 0:00:28]} Qa8 {[%emt 0:01:00]} 49. Ra1 {[%emt 0:01:53]} Qb7 {[%emt 0:01:06]} 50. Qb5 {[%emt 0:01:21]} Qf7 {[%emt 0:01:22]} 51. Rd1 {[%emt 0:03:48]} Qa7+ {[%emt 0:01:08]} 52. Kg2 {[%emt 0:00:23]} Qf7 {[%emt 0:07:10]} 53. Rd4 {[%emt 0:02:41]} Qa7 {[%emt 0:01:23]} 54. Rd2 {[%emt 0:03:00]} Qf7 {[%emt 0:00:17]} 55. Qf5+ {[%emt 0:01:01]} g6 {[%emt 0:02:47]} 56. Qb5 {[%emt 0:02:02]} Kh8 {[%emt 0:01:06]} 57. Bxh6 {[%emt 0:04:13]} Nxe4 {[%emt 0:01:48]} 58. Bxf8 {[%emt 0:01:05]} Nxd2 {[%emt 0:00:06]} 59. Qb2+ {[%emt 0:00:40]} Kh7 {[%emt 0:00:45]} 60. Qxd2 {[%emt 0:01:45]} Qxf8 {[%emt 0:00:05]} 61. Qe3 {[%emt 0:00:45]} Qf6 {[%emt 0:00:37]} 62. c5 {[%emt 0:01:31]} Qb2+ {[%emt 0:00:15]} 63. Kh3 {[%emt 0:00:42]} Qb1 {[%emt 0:00:25]} 64. c6 {[%emt 0:01:26]} Qf1+ {[%emt 0:00:26]} 65. Kh2 {[%emt 0:03:04]} Qd1 {[%emt 0:00:15]} 66. Qe7+ {[%emt 0:03:10]} Kh6 {[%emt 0:00:15]} 67. Qf8+ {[%emt 0:00:47]} Kh7 {[%emt 0:00:21]} 68. Qf7+ {[%emt 0:00:33]} Kh6 {[%emt 0:00:14]} 69. c7 {[%emt 0:00:12]} Qe2+ {[%emt 0:00:20]} 70. Kh3 {[%emt 0:00:17]} Qf1+ {[%emt 0:00:43]} 71. Kg4 {[%emt 0:00:08]} Qa6 {[%emt 0:01:41]} 72. Qf8+ 1-0

[Event "FIDE WCCC G10 2018"]
[Site "Santiago de Compostela"]
[Date "2018.11.15"]
[Round "11"]
[White "Qu, Greta"]
[Black "Khamdamova, Afruza"]
[Result "0-1"]
[ECO "C44"]
[WhiteElo "1360"]
[BlackElo "1691"]
[Annotator "NA"]
[PlyCount "154"]
[EventDate "2018.11.04"]
[EventType "swiss"]
[EventCountry "ESP"]
[SourceTitle "playchess.com"]
[Source "ChessBase"]
[SourceQuality "1"]
[TimeControl "40/5400+30:1800+30"]

1. e4 {[%emt 0:00:00]} e5 {[%emt 0:00:00]} 2. Nf3 {[%emt 0:00:00]} Nc6 {[%emt 0:00:00]} 3. d4 {[%emt 0:00:00]} exd4 {[%emt 0:00:00]} 4. Nxd4 {[%emt 0:00:00]} Nf6 {[%emt 0:00:00]} 5. Nc3 {[%emt 0:00:00]} Bb4 {[%emt 0:00:00]} 6. Nxc6 {[%emt 0:00:00]} bxc6 {[%emt 0:00:00]} 7. Bd3 {[%emt 0:00:01]} d5 {[%emt 0:00:02]} 8. exd5 {[%emt 0:00:04]} cxd5 {[%emt 0:00:03]} 9. O-O {[%emt 0:00:05]} O-O {[%emt 0:00:04]} 10. Bg5 {[%emt 0:00:06]} c6 {[%emt 0:00:03]} 11. Qf3 {[%emt 0:00:08]} Be7 {[%emt 0:00:17]} 12. h3 {[%emt 0:00:32]} Rb8 {[%emt 0:00:07]} 13. Rab1 {[%emt 0:00:31]} Be6 {[%emt 0:00:05]} 14. Ne2 {[%emt 0:01:42]} c5 {[%emt 0:15:25]} 15. Nf4 {[%emt 0:03:36]} c4 {[%emt 0:00:21]} 16. Be2 {[%emt 0:00:49]} Ne4 {[%emt 0:05:56]} 17. Bxe7 {[%emt 0:02:19]} Qxe7 {[%emt 0:00:04]} 18. Qe3 {[%emt 0:01:13]} Qc5 {[%emt 0:08:46]} 19. Qxc5 {[%emt 0:06:38]} Nxc5 {[%emt 0:00:16]} 20. Nxe6 {[%emt 0:01:29]} fxe6 {[%emt 0:00:44]} 21. Bg4 {[%emt 0:00:25]} Rfe8 {[%emt 0:04:54]} 22. Rfe1 {[%emt 0:01:58]} e5 {[%emt 0:02:43]} 23. Kf1 {[%emt 0:07:25]} d4 {[%emt 0:02:46]} 24. Ke2 {[%emt 0:02:26]} Ne4 {[%emt 0:02:54]} 25. Bf3 {[%emt 0:02:46]} Nf6 {[%emt 0:00:07]} 26. g4 {[%emt 0:04:33]} e4 {[%emt 0:05:19]} 27. Bg2 {[%emt 0:00:05]} g5 {[%emt 0:05:23]} 28. Kd2 {[%emt 0:00:59]} Kf7 {[%emt 0:11:59]} 29. Bf1 {[%emt 0:00:52]} Rbc8 {[%emt 0:00:31]} 30. b3 {[%emt 0:02:01]} c3+ {[%emt 0:00:06]} 31. Kc1 {[%emt 0:00:17]} Red8 {[%emt 0:01:38]} 32. Bc4+ {[%emt 0:00:39]} Kg7 {[%emt 0:00:37]} 33. Rd1 {[%emt 0:01:05]} Rc6 {[%emt 0:00:51]} 34. Bb5 {[%emt 0:01:14]} Rcd6 {[%emt 0:00:44]} 35. b4 {[%emt 0:00:30]} d3 {[%emt 0:04:36]} 36. cxd3 {[%emt 0:00:35]} exd3 {[%emt 0:00:05]} 37. Rb3 {[%emt 0:00:10]} Ne4 {[%emt 0:00:58]} 38. f3 {[%emt 0:00:30]} d2+ {[%emt 0:00:49]} 39. Kc2 {[%emt 0:00:06]} Nf2 {[%emt 0:00:05]} 40. Rxc3 {[%emt 0:00:00]} Nxd1 {[%emt 0:00:00]} 41. Kxd1 {[%emt 0:00:10]} Re6 {[%emt 0:00:57]} 42. Rd3 {[%emt 0:00:53]} Rxd3 {[%emt 0:00:48]} 43. Bxd3 {[%emt 0:00:05]} Re3 {[%emt 0:00:29]} 44. Be4 {[%emt 0:00:23]} Ra3 {[%emt 0:00:12]} 45. Kxd2 {[%emt 0:00:20]} Rxa2+ {[%emt 0:00:07]} 46. Kc3 {[%emt 0:00:08]} Rh2 {[%emt 0:00:22]} 47. Kc4 {[%emt 0:00:03]} Rxh3 {[%emt 0:01:31]} 48. Kb5 {[%emt 0:00:08]} Rh2 {[%emt 0:00:39]} 49. Ka6 {[%emt 0:00:21]} Rb2 {[%emt 0:00:15]} 50. b5 {[%emt 0:00:08]} h6 {[%emt 0:01:43]} 51. Bc6 {[%emt 0:00:30]} Ra2+ {[%emt 0:00:10]} 52. Kb7 {[%emt 0:00:04]} Kf6 {[%emt 0:02:07]} 53. Bd7 {[%emt 0:02:48]} Ke5 {[%emt 0:01:50]} 54. Bc6 {[%emt 0:00:23]} Ra5 {[%emt 0:00:42]} 55. Kc7 {[%emt 0:00:18]} Kf4 {[%emt 0:00:37]} 56. Kb7 {[%emt 0:00:14]} Rxb5+ {[%emt 0:01:45]} 57. Bxb5 {[%emt 0:00:08]} Kxf3 {[%emt 0:00:04]} 58. Bd7 {[%emt 0:00:57]} a5 {[%emt 0:00:03]} 59. Kb6 {[%emt 0:00:05]} a4 {[%emt 0:00:04]} 60. Bxa4 {[%emt 0:00:05]} Kxg4 {[%emt 0:00:04]} 61. Kc5 Kh3 {[%emt 0:04:06]} 62. Kd4 {[%emt 0:00:16]} g4 {[%emt 0:00:32]} 63. Bd7 {[%emt 0:01:16]} h5 {[%emt 0:00:52]} 64. Ke3 {[%emt 0:00:10]} Kg3 {[%emt 0:00:20]} 65. Bc6 {[%emt 0:01:12]} h4 {[%emt 0:00:27]} 66. Ke2 {[%emt 0:00:05]} Kh2 {[%emt 0:00:18]} 67. Kf1 {[%emt 0:00:55]} g3 {[%emt 0:00:08]} 68. Bg2 {[%emt 0:00:08]} h3 {[%emt 0:00:06]} 69. Bxh3 {[%emt 0:00:07]} Kxh3 {[%emt 0:00:03]} 70. Kg1 {[%emt 0:00:03]} g2 {[%emt 0:00:06]} 71. Kf2 {[%emt 0:00:03]} Kh2 {[%emt 0:00:06]} 72. Kf3 {[%emt 0:00:03]} g1=Q {[%emt 0:00:08]} 73. Ke2 {[%emt 0:00:03]} Qd4 {[%emt 0:00:33]} 74. Kf1 {[%emt 0:00:03]} Kg3 {[%emt 0:00:10]} 75. Ke2 {[%emt 0:00:02]} Kg2 {[%emt 0:00:22]} 76. Ke1 {[%emt 0:00:02]} Kf3 {[%emt 0:00:08]} 77. Kf1 {[%emt 0:00:04]} Qf2# {[%emt 0:00:06]} 0-1

[Event "FIDE WCCC G10 2018"]
[Site "Santiago de Compostela"]
[Date "2018.11.15"]
[Round "11"]
[White "Ho, Ngoc Vy"]
[Black "Unurzul, Davaakhuu"]
[Result "1-0"]
[ECO "D94"]
[WhiteElo "1275"]
[BlackElo "1342"]
[Annotator "NA"]
[PlyCount "79"]
[EventDate "2018.11.04"]
[EventType "swiss"]
[EventCountry "ESP"]
[SourceTitle "playchess.com"]
[Source "ChessBase"]
[SourceQuality "1"]
[TimeControl "40/5400+30:1800+30"]

1. d4 {[%emt 0:00:00]} Nf6 {[%emt 0:00:00]} 2. c4 {[%emt 0:00:00]} g6 {[%emt 0:00:06]} 3. Nc3 {[%emt 0:00:17]} d5 {[%emt 0:00:34]} 4. Nf3 {[%emt 0:01:11]} Bg7 {[%emt 0:01:51]} 5. e3 {[%emt 0:02:50]} O-O {[%emt 0:02:18]} 6. Be2 {[%emt 0:03:19]} c6 {[%emt 0:04:05]} 7. O-O {[%emt 0:01:28]} Nbd7 {[%emt 0:00:57]} 8. c5 {[%emt 0:01:02]} b6 {[%emt 0:00:37]} 9. b4 {[%emt 0:00:45]} a5 {[%emt 0:01:09]} 10. Ba3 {[%emt 0:04:34]} axb4 {[%emt 0:01:04]} 11. Bxb4 {[%emt 0:00:09]} bxc5 {[%emt 0:00:06]} 12. dxc5 {[%emt 0:03:03]} Ne4 {[%emt 0:02:02]} 13. Rc1 {[%emt 0:05:32]} Rb8 {[%emt 0:07:43]} 14. a3 {[%emt 0:02:47]} Ndxc5 {[%emt 0:12:46]} 15. Nxe4 {[%emt 0:00:56]} Nxe4 {[%emt 0:00:08]} 16. Rxc6 {[%emt 0:00:16]} Bd7 {[%emt 0:07:10]} 17. Ra6 {[%emt 0:01:32]} Bg4 {[%emt 0:14:53]} 18. h3 {[%emt 0:02:42]} Bc8 {[%emt 0:01:32]} 19. Ra5 {[%emt 0:01:36]} Bb7 {[%emt 0:00:11]} 20. Nd4 {[%emt 0:01:19]} Re8 {[%emt 0:02:32]} 21. Bb5 {[%emt 0:01:28]} Rf8 {[%emt 0:00:33]} 22. Bc6 {[%emt 0:00:26]} Bxd4 {[%emt 0:13:03]} 23. Rxd5 {[%emt 0:01:35]} Qb6 {[%emt 0:01:19]} 24. Bxb7 {[%emt 0:01:18]} Bf6 {[%emt 0:03:31]} 25. Qd3 {[%emt 0:02:31]} Qxb7 {[%emt 0:01:18]} 26. Qxe4 {[%emt 0:00:11]} e6 {[%emt 0:07:01]} 27. Bxf8 {[%emt 0:00:37]} Rxf8 {[%emt 0:00:31]} 28. Rd4 {[%emt 0:00:23]} Qxe4 {[%emt 0:03:23]} 29. Rxe4 {[%emt 0:00:12]} Ra8 {[%emt 0:00:20]} 30. a4 {[%emt 0:00:15]} Kf8 {[%emt 0:00:26]} 31. Rb1 {[%emt 0:00:11]} Be7 {[%emt 0:00:33]} 32. Rb7 {[%emt 0:00:09]} Rc8 {[%emt 0:01:08]} 33. Kf1 {[%emt 0:00:23]} Bd6 {[%emt 0:00:41]} 34. a5 {[%emt 0:00:16]} Ra8 {[%emt 0:00:13]} 35. Ra4 {[%emt 0:00:07]} Ke8 {[%emt 0:00:11]} 36. a6 {[%emt 0:00:05]} h6 {[%emt 0:00:14]} 37. a7 {[%emt 0:00:15]} Kd8 {[%emt 0:00:57]} 38. Ra6 {[%emt 0:00:08]} Kc8 {[%emt 0:00:23]} 39. Rxf7 {[%emt 0:00:59]} Bc7 {[%emt 0:01:10]} 40. Rf8+ {[%emt 0:00:00]} 1-0

[Event "FIDE WCCC G10 2018"]
[Site "Santiago de Compostela"]
[Date "2018.11.15"]
[Round "11"]
[White "Wen, Kally"]
[Black "Kurmanalina, Deniza"]
[Result "0-1"]
[ECO "B40"]
[WhiteElo "1195"]
[BlackElo "1320"]
[Annotator "NA"]
[PlyCount "88"]
[EventDate "2018.11.04"]
[EventType "swiss"]
[EventCountry "ESP"]
[SourceTitle "playchess.com"]
[Source "ChessBase"]
[SourceQuality "1"]
[TimeControl "40/5400+30:1800+30"]

1. e4 {[%emt 0:00:00]} c5 {[%emt 0:00:00]} 2. Nf3 {[%emt 0:00:00]} e6 {[%emt 0:00:00]} 3. d4 {[%emt 0:00:00]} cxd4 {[%emt 0:00:00]} 4. Nxd4 {[%emt 0:00:00]} Nf6 {[%emt 0:00:00]} 5. Bd3 {[%emt 0:00:00]} Nc6 {[%emt 0:00:08]} 6. Nxc6 {[%emt 0:00:12]} bxc6 {[%emt 0:00:30]} 7. O-O {[%emt 0:00:52]} d6 {[%emt 0:01:26]} 8. b3 {[%emt 0:01:41]} Be7 {[%emt 0:00:27]} 9. Bb2 {[%emt 0:00:46]} O-O {[%emt 0:01:05]} 10. f4 {[%emt 0:05:38]} Qb6+ {[%emt 0:03:04]} 11. Kh1 {[%emt 0:00:23]} Ba6 {[%emt 0:02:19]} 12. c4 {[%emt 0:04:47]} Rfd8 {[%emt 0:12:56]} 13. Qc2 {[%emt 0:05:16]} h6 {[%emt 0:07:59]} 14. Qe2 {[%emt 0:07:44]} c5 {[%emt 0:02:25]} 15. Nc3 {[%emt 0:04:48]} Rab8 {[%emt 0:00:40]} 16. e5 {[%emt 0:02:22]} dxe5 {[%emt 0:01:53]} 17. Na4 {[%emt 0:04:26]} Qc6 {[%emt 0:06:07]} 18. Bxe5 {[%emt 0:02:36]} Rbc8 {[%emt 0:01:16]} 19. f5 {[%emt 0:08:04]} Bb7 {[%emt 0:04:31]} 20. fxe6 {[%emt 0:03:43]} Rxd3 {[%emt 0:20:11]} 21. exf7+ {[%emt 0:08:35]} Kxf7 {[%emt 0:02:16]} 22. Bxf6 {[%emt 0:03:50]} Bxf6 {[%emt 0:02:22]} 23. Nxc5 {[%emt 0:06:05]} Qxg2+ {[%emt 0:02:26]} 24. Qxg2 {[%emt 0:00:38]} Bxg2+ {[%emt 0:00:04]} 25. Kxg2 {[%emt 0:00:16]} Rxc5 {[%emt 0:00:06]} 26. Rad1 {[%emt 0:00:35]} Rxd1 {[%emt 0:01:46]} 27. Rxd1 {[%emt 0:00:08]} Ra5 {[%emt 0:00:02]} 28. a4 {[%emt 0:01:21]} Re5 {[%emt 0:01:17]} 29. c5 {[%emt 0:01:36]} Rxc5 {[%emt 0:00:56]} 30. Rd7+ {[%emt 0:00:10]} Kg6 {[%emt 0:00:15]} 31. Rxa7 {[%emt 0:00:19]} Rc2+ {[%emt 0:00:09]} 32. Kf1 {[%emt 0:02:54]} Rxh2 {[%emt 0:00:44]} 33. b4 {[%emt 0:00:18]} Rb2 {[%emt 0:01:50]} 34. b5 {[%emt 0:00:20]} h5 {[%emt 0:00:54]} 35. Rb7 {[%emt 0:01:07]} h4 {[%emt 0:01:54]} 36. a5 {[%emt 0:00:17]} h3 {[%emt 0:00:07]} 37. Kg1 {[%emt 0:00:27]} h2+ {[%emt 0:00:21]} 38. Kh1 {[%emt 0:00:04]} Be5 {[%emt 0:00:32]} 39. Rb6+ {[%emt 0:00:41]} Kg5 {[%emt 0:00:23]} 40. a6 {[%emt 0:00:00]} Rb1+ {[%emt 0:00:00]} 41. Kg2 {[%emt 0:00:16]} h1=Q+ {[%emt 0:00:15]} 42. Kf2 {[%emt 0:00:10]} Rb3 {[%emt 0:00:17]} 43. a7 {[%emt 0:00:08]} Qh2+ {[%emt 0:00:07]} 44. Ke1 {[%emt 0:00:05]} Rb1# {[%emt 0:00:05]} 0-1